fUSD/lending_fUSD_20250311
["ID","MTS","AMOUNT","RATE_DAILY","PERIOD"]
[355909850,1741711846119,-1728.16,8.884e-05,2]
[355909852,1741711846128,-500.0,8.884e-05,2]
[355909854,1741711846138,-551.33663525,8.884e-05,2]
[355909857,1741711846147,-1939.52837351,8.884e-05,2]
[355909861,1741711846159,-444.72505,8.884e-05,2]
[355909865,1741711846839,-22.76657649,8.884e-05,2]
[355909866,1741711846849,-500.0,8.884e-05,2]
[355909867,1741711846858,-971.49,8.884e-05,2]
[355909868,1741711846868,-500.0,8.884e-05,2]
[355909869,1741711846877,-1283.68435684,8.884e-05,2]
[355909870,1741711846888,-821.29564316,8.884e-05,2]
[355909871,1741711846897,-624.98419522,8.884e-05,2]
[355909872,1741711847005,-102.60580478,8.884e-05,2]
[355909873,1741711847015,-500.0,8.884e-05,2]
[355909874,1741711847024,-1163.13,8.884e-05,2]
[355909875,1741711847034,-929.74,8.884e-05,2]
[355909876,1741711847043,-1106.58,8.884e-05,2]
[355909877,1741711847052,-500.0,8.884e-05,2]
[355909878,1741711847061,-1548.83,8.884e-05,2]
[355909879,1741711847070,-1475.49,8.884e-05,2]
[355909880,1741711847079,-584.45,8.884e-05,2]
[355909881,1741711847088,-500.0,8.884e-05,2]
[355909882,1741711847097,-500.0,8.884e-05,2]
[355909883,1741711847107,-2154.31,8.884e-05,2]
[355909884,1741711847116,-774.5,8.884e-05,2]
[355909885,1741711847125,-500.0,8.884e-05,2]
[355909886,1741711847134,-500.0,8.884e-05,2]
[355909887,1741711847143,-500.0,8.884e-05,2]
[355909888,1741711847153,-500.0,8.884e-05,2]
[355909889,1741711847162,-666.93,8.884e-05,2]
[355909890,1741711847171,-500.0,8.884e-05,2]
[355909891,1741711847180,-839.97,8.884e-05,2]
[355909892,1741711847190,-1089.24,8.884e-05,2]
[355909893,1741711847200,-333.24760773,8.884e-05,2]
[355909894,1741711847209,-500.0,8.884e-05,2]
[355909895,1741711847219,-500.0,8.884e-05,2]
[355909896,1741711847228,-500.0,8.884e-05,2]
[355909897,1741711847237,-500.0,8.884e-05,2]
[355909898,1741711847247,-1078.09,8.884e-05,2]
[355909899,1741711847256,-1309.42820354,8.884e-05,2]
[355909900,1741711847280,-1000.0,8.884e-05,2]
[355909901,1741711847292,-891.90179646,8.884e-05,2]
[355909902,1741711847302,-1066.13,8.884e-05,2]
[355909903,1741711847311,-500.0,8.884e-05,2]
[355909904,1741711847320,-500.0,8.884e-05,2]
[355909905,1741711847329,-500.0,8.884e-05,2]
[355909906,1741711847339,-500.0,8.884e-05,2]
[355909907,1741711847347,-500.88,8.884e-05,2]
[355909908,1741711847357,-500.0,8.884e-05,2]
[355909909,1741711847366,-2015.39,8.884e-05,2]
[355909910,1741711847375,-962.65,8.884e-05,2]
[355909911,1741711847384,-500.0,8.884e-05,2]
[355909912,1741711847393,-2727.97,8.884e-05,2]
[355909913,1741711847403,-500.0,8.884e-05,2]
[355909914,1741711847412,-500.0,8.884e-05,2]
[355909915,1741711847421,-500.0,8.884e-05,2]
[355909916,1741711847431,-663.28,8.884e-05,2]
[355909917,1741711847441,-626.27941147,8.884e-05,2]
[355909918,1741711847450,-500.0,8.884e-05,2]
[355909919,1741711847459,-1627.59,8.884e-05,2]
[355909920,1741711847468,-2051.09,8.884e-05,2]
[355909921,1741711847478,-500.0,8.884e-05,2]
[355909922,1741711847494,-1821.25,8.884e-05,2]
[355909923,1741711847504,-500.0,8.884e-05,2]
[355909924,1741711847513,-2141.65,8.884e-05,2]
[355909925,1741711847523,-230.30397814,8.884e-05,2]
[355909926,1741711847533,-500.0,8.884e-05,2]
[355909927,1741711847543,-500.0,8.884e-05,2]
[355909928,1741711847553,-500.0,8.884e-05,2]
[355909929,1741711847562,-2166.78,8.884e-05,2]
[355909930,1741711847574,-533.46861005,8.884e-05,2]
[355909931,1741711847583,-948.45,8.884e-05,2]
[355909932,1741711847593,-500.0,8.884e-05,2]
[355909933,1741711847603,-2079.81,8.884e-05,2]
[355909934,1741711847613,-520.50181443,8.884e-05,2]
[355909935,1741711847622,-2853.62,8.884e-05,2]
[355909936,1741711847633,-1471.81,8.884e-05,2]
[355909937,1741711847643,-500.0,8.884e-05,2]
[355909938,1741711847653,-615.67,8.884e-05,2]
[355909939,1741711847663,-283.03897794,8.884e-05,2]
[355909940,1741711847673,-500.0,8.884e-05,2]
[355909941,1741711847683,-500.0,8.884e-05,2]
[355909942,1741711847694,-767.47,8.884e-05,2]
[355909943,1741711847704,-500.0,8.884e-05,2]
[355909944,1741711847714,-2124.76,8.884e-05,2]
[355909945,1741711847723,-500.0,8.884e-05,2]
[355909946,1741711847733,-3238.15,8.884e-05,2]
[355909947,1741711847743,-1529.15,8.884e-05,2]
[355909948,1741711847752,-500.0,8.884e-05,2]
[355909949,1741711847762,-500.0,8.884e-05,2]
[355909950,1741711847772,-547.17,8.884e-05,2]
[355909951,1741711847781,-2174.54,8.884e-05,2]
[355909952,1741711847791,-500.0,8.884e-05,2]
[355909953,1741711847801,-500.0,8.884e-05,2]
[355909954,1741711847810,-1615.94,8.884e-05,2]
[355909955,1741711847820,-2693.18,8.884e-05,2]
[355909956,1741711847829,-500.0,8.884e-05,2]
[355909957,1741711847839,-2535.08,8.884e-05,2]
[355909958,1741711847848,-500.0,8.884e-05,2]
[355909959,1741711847857,-500.0,8.884e-05,2]
[355909960,1741711847867,-500.0,8.884e-05,2]
[355909961,1741711847876,-500.0,8.884e-05,2]
[355909962,1741711847885,-640.61,8.884e-05,2]
[355909963,1741711847895,-500.0,8.884e-05,2]
[355909964,1741711847904,-500.0,8.884e-05,2]
[355909965,1741711847913,-3940.66,8.884e-05,2]
[355909966,1741711847923,-500.0,8.884e-05,2]
[355909967,1741711847932,-500.0,8.884e-05,2]
[355909968,1741711847942,-500.0,8.884e-05,2]
[355909969,1741711847952,-725.75,8.884e-05,2]
[355909970,1741711847961,-500.0,8.884e-05,2]
[355909971,1741711847970,-582.5089508,8.884e-05,2]
[355909972,1741711847983,-92.1510492,8.884e-05,2]
[355909973,1741711847993,-457.1989733,8.884e-05,2]
[355909974,1741711848010,-42.8010267,8.884e-05,2]
[355909975,1741711848019,-500.0,8.884e-05,2]
[355909976,1741711848029,-933.78,8.884e-05,2]
[355909977,1741711848040,-500.0,8.884e-05,2]
[355909978,1741711848050,-500.0,8.884e-05,2]
[355909979,1741711848059,-500.0,8.884e-05,2]
[355909980,1741711848276,-500.0,8.884e-05,2]
[355909981,1741711848286,-1744.93,8.884e-05,2]
[355909982,1741711848296,-500.0,8.884e-05,2]
[355909983,1741711848306,-500.0,8.884e-05,2]
[355909984,1741711848316,-500.0,8.884e-05,2]
[355909985,1741711848326,-557.41,8.884e-05,2]
[355909986,1741711848336,-1502.98,8.884e-05,2]
[355909987,1741711848346,-671.89,8.884e-05,2]
[355909988,1741711848356,-500.0,8.884e-05,2]
[355909989,1741711848366,-969.05,8.884e-05,2]
[355909990,1741711848376,-500.0,8.884e-05,2]
[355909991,1741711848386,-500.0,8.884e-05,2]
[355909992,1741711848396,-1887.37,8.884e-05,2]
[355909993,1741711848405,-899.96,8.884e-05,2]
[355909994,1741711848415,-500.0,8.884e-05,2]
[355909995,1741711848425,-500.0,8.884e-05,2]
[355909996,1741711848435,-1335.34,8.884e-05,2]
[355909997,1741711848447,-651.98,8.884e-05,2]
[355909998,1741711848457,-434.92500565,8.884e-05,2]
[355909999,1741711848467,-500.0,8.884e-05,2]
[355910000,1741711848477,-500.0,8.884e-05,2]
[355910001,1741711848487,-6021.91,8.884e-05,2]
[355910002,1741711848500,-500.0,8.884e-05,2]
[355910003,1741711848510,-723.32,8.884e-05,2]
[355910004,1741711848520,-500.0,8.884e-05,2]
[355910005,1741711848530,-777.69,8.884e-05,2]
[355910006,1741711848542,-939.57,8.884e-05,2]
[355910007,1741711848551,-503.93150932,8.884e-05,2]
[355910008,1741711848561,-500.0,8.884e-05,2]
[355910009,1741711848571,-500.0,8.884e-05,2]
[355910010,1741711848580,-2486.07,8.884e-05,2]
[355910011,1741711848592,-645.76,8.884e-05,2]
[355910012,1741711848602,-500.0,8.884e-05,2]
[355910013,1741711848611,-2237.19,8.884e-05,2]
[355910014,1741711848621,-1092.13,8.884e-05,2]
[355910015,1741711848631,-500.0,8.884e-05,2]
[355910016,1741711848641,-754.82,8.884e-05,2]
[355910017,1741711848651,-600.68,8.884e-05,2]
[355910018,1741711848661,-500.0,8.884e-05,2]
[355910019,1741711848671,-654.61,8.884e-05,2]
[355910020,1741711848680,-920.41,8.884e-05,2]
[355910021,1741711848690,-500.0,8.884e-05,2]
[355910022,1741711848700,-857.09,8.884e-05,2]
[355910023,1741711848710,-3851.35,8.884e-05,2]
[355910024,1741711848720,-500.0,8.884e-05,2]
[355910025,1741711848729,-2370.56,8.884e-05,2]
[355910026,1741711848739,-1680.4,8.884e-05,2]
[355910027,1741711848749,-629.17,8.884e-05,2]
[355910028,1741711848758,-500.0,8.884e-05,2]
[355910029,1741711848768,-500.0,8.884e-05,2]
[355910030,1741711848778,-1516.73,8.884e-05,2]
[355910031,1741711848788,-500.0,8.884e-05,2]
[355910032,1741711848797,-500.0,8.884e-05,2]
[355910033,1741711848807,-500.0,8.884e-05,2]
[355910034,1741711848816,-500.0,8.884e-05,2]
[355910035,1741711848826,-1150.35,8.884e-05,2]
[355910036,1741711848835,-533.41,8.884e-05,2]
[355910037,1741711848845,-500.0,8.884e-05,2]
[355910038,1741711848854,-520.17026407,8.884e-05,2]
[355910039,1741711848863,-500.0,8.884e-05,2]
[355910040,1741711848872,-3133.08,8.884e-05,2]
[355910041,1741711848882,-1818.8,8.884e-05,2]
[355910042,1741711848891,-500.0,8.884e-05,2]
[355910043,1741711848900,-3899.78,8.884e-05,2]
[355910044,1741711848910,-980.39,8.884e-05,2]
[355910045,1741711848919,-1532.89,8.884e-05,2]
[355910046,1741711848929,-295.96852728,8.884e-05,2]
[355910047,1741711848940,-500.0,8.884e-05,2]
[355910048,1741711848949,-500.0,8.884e-05,2]
[355910049,1741711848959,-2612.44,8.884e-05,2]
[355910050,1741711848968,-812.03,8.884e-05,2]
[355910051,1741711848978,-1198.86,8.884e-05,2]
[355910052,1741711848987,-500.0,8.884e-05,2]
[355910053,1741711848997,-500.0,8.884e-05,2]
[355910054,1741711849007,-2169.84,8.884e-05,2]
[355910055,1741711849016,-503.55,8.884e-05,2]
[355910056,1741711849025,-500.0,8.884e-05,2]
[355910057,1741711849035,-1249.08,8.884e-05,2]
[355910058,1741711849044,-1418.45,8.884e-05,2]
[355910059,1741711849053,-500.0,8.884e-05,2]
[355910060,1741711849062,-889.4,8.884e-05,2]
[355910061,1741711849072,-327.9401853,8.884e-05,2]
[355910062,1741711849081,-500.0,8.884e-05,2]
[355910063,1741711849091,-485.20656537,8.884e-05,2]
[355910064,1741711849100,-500.0,8.884e-05,2]
[355910065,1741711849109,-869.33,8.885e-05,2]
[355910066,1741711849119,-500.0,8.885e-05,2]
[355910067,1741711849128,-500.0,8.885e-05,2]
[355910068,1741711849137,-500.0,8.885e-05,2]
[355910069,1741711849147,-500.0,8.885e-05,2]
[355910070,1741711849157,-500.0,8.885e-05,2]
[355910071,1741711849167,-500.0,8.885e-05,2]
[355910072,1741711849177,-707.92,8.885e-05,2]
[355910073,1741711849186,-500.0,8.885e-05,2]
[355910074,1741711849198,-500.0,8.885e-05,2]
[355910075,1741711849207,-500.0,8.885e-05,2]
[355910076,1741711849217,-992.04,8.885e-05,2]
[355910077,1741711849227,-1130.07,8.885e-05,2]
[355910078,1741711849236,-500.0,8.885e-05,2]
[355910079,1741711849246,-500.0,8.885e-05,2]
[355910080,1741711849256,-163.54377597,8.885e-05,2]
[355910081,1741711849267,-500.0,8.885e-05,2]
[355910082,1741711849277,-500.0,8.885e-05,2]
[355910083,1741711849287,-1352.34,8.885e-05,2]
[355910084,1741711849297,-585.02,8.885e-05,2]
[355910085,1741711849307,-1003.2,8.885e-05,2]
[355910086,1741711849318,-500.0,8.885e-05,2]
[355910087,1741711849328,-500.0,8.885e-05,2]
[355910088,1741711849338,-621.81,8.885e-05,2]
[355910089,1741711849347,-1489.62,8.885e-05,2]
[355910090,1741711849357,-500.0,8.885e-05,2]
[355910091,1741711849367,-584.78,8.885e-05,2]
[355910092,1741711849377,-1330.99,8.885e-05,2]
[355910093,1741711849387,-500.0,8.885e-05,2]
[355910094,1741711849397,-1360.55,8.885e-05,2]
[355910095,1741711849407,-951.37,8.885e-05,2]
[355910096,1741711849417,-581.79,8.885e-05,2]
[355910097,1741711849433,-500.0,8.885e-05,2]
[355910098,1741711849445,-500.0,8.885e-05,2]
[355910099,1741711849455,-500.0,8.885e-05,2]
[355910100,1741711849465,-974.68,8.885e-05,2]
[355910101,1741711849474,-500.0,8.885e-05,2]
[355910102,1741711849484,-500.0,8.885e-05,2]
[355910103,1741711849498,-500.0,8.885e-05,2]
[355910104,1741711849508,-500.0,8.885e-05,2]
[355910105,1741711849517,-500.0,8.885e-05,2]
[355910106,1741711849527,-517.87575746,8.885e-05,2]
[355910107,1741711849537,-500.0,8.885e-05,2]
[355910108,1741711849546,-500.0,8.885e-05,2]
[355910109,1741711849556,-504.09,8.885e-05,2]
[355910110,1741711849566,-500.0,8.885e-05,2]
[355910111,1741711849576,-500.0,8.885e-05,2]
[355910112,1741711849587,-1010.2,8.885e-05,2]
[355910113,1741711849597,-500.0,8.885e-05,2]
[355910114,1741711849606,-1377.74,8.885e-05,2]
[355910115,1741711849615,-500.0,8.885e-05,2]
[355910116,1741711849624,-500.0,8.885e-05,2]
[355910117,1741711849634,-500.0,8.885e-05,2]
[355910118,1741711849643,-512.85,8.885e-05,2]
[355910119,1741711849652,-500.0,8.885e-05,2]
[355910120,1741711849662,-500.0,8.885e-05,2]
[355910121,1741711849671,-514.74567146,8.885e-05,2]
[355910122,1741711849680,-500.0,8.885e-05,2]
[355910123,1741711849690,-500.0,8.885e-05,2]
[355910124,1741711849699,-500.0,8.885e-05,2]
[355910125,1741711849708,-500.0,8.885e-05,2]
[355910126,1741711849718,-500.0,8.885e-05,2]
[355910127,1741711849728,-649.06,8.885e-05,2]
[355910128,1741711849737,-810.45,8.885e-05,2]
[355910129,1741711849747,-500.0,8.885e-05,2]
[355910130,1741711849756,-500.0,8.885e-05,2]
[355910131,1741711849765,-500.0,8.885e-05,2]
[355910132,1741711849774,-785.16,8.885e-05,2]
[355910133,1741711849784,-500.0,8.885e-05,2]
[355910134,1741711849793,-830.21,8.885e-05,2]
[355910135,1741711849802,-500.0,8.885e-05,2]
[355910136,1741711849811,-500.0,8.885e-05,2]
[355910137,1741711849820,-500.0,8.885e-05,2]
[355910138,1741711849830,-500.0,8.885e-05,2]
[355910139,1741711849839,-500.0,8.885e-05,2]
[355910140,1741711849849,-500.0,8.885e-05,2]
[355910141,1741711849859,-2164.08,8.885e-05,2]
[355910142,1741711849868,-500.0,8.885e-05,2]
[355910143,1741711849878,-500.0,8.885e-05,2]
[355910144,1741711849889,-500.0,8.885e-05,2]
[355910145,1741711849898,-500.0,8.885e-05,2]
[355910146,1741711849908,-631.71,8.885e-05,2]
[355910147,1741711849918,-500.0,8.885e-05,2]
[355910148,1741711849928,-1934.73,8.885e-05,2]
[355910149,1741711849937,-518.5440785,8.885e-05,2]
[355910150,1741711849946,-500.0,8.885e-05,2]
[355910151,1741711849955,-500.0,8.885e-05,2]
[355910152,1741711849965,-500.0,8.885e-05,2]
[355910153,1741711849975,-500.0,8.885e-05,2]
[355910154,1741711849985,-605.39,8.885e-05,2]
[355910155,1741711849994,-500.0,8.885e-05,2]
[355910156,1741711850003,-570.36,8.885e-05,2]
[355910157,1741711850013,-500.0,8.885e-05,2]
[355910158,1741711850023,-500.0,8.885e-05,2]
[355910159,1741711850032,-500.0,8.885e-05,2]
[355910160,1741711850041,-500.0,8.885e-05,2]
[355910161,1741711850050,-959.51,8.885e-05,2]
[355910162,1741711850060,-721.45,8.885e-05,2]
[355910163,1741711850069,-723.55,8.885e-05,2]
[355910164,1741711850079,-1076.83,8.885e-05,2]
[355910165,1741711850088,-764.86,8.885e-05,2]
[355910166,1741711850097,-500.0,8.885e-05,2]
[355910167,1741711850107,-500.0,8.885e-05,2]
[355910168,1741711850116,-769.08,8.885e-05,2]
[355910169,1741711850126,-500.0,8.885e-05,2]
[355910170,1741711850135,-500.0,8.885e-05,2]
[355910171,1741711850144,-634.16,8.885e-05,2]
[355910172,1741711850153,-599.8,8.885e-05,2]
[355910173,1741711850163,-500.0,8.885e-05,2]
[355910174,1741711850172,-500.0,8.885e-05,2]
[355910175,1741711850181,-899.36,8.885e-05,2]
[355910176,1741711850193,-771.13,8.885e-05,2]
[355910177,1741711850202,-500.0,8.885e-05,2]
[355910178,1741711850212,-1697.8,8.885e-05,2]
[355910179,1741711850221,-654.6,8.885e-05,2]
[355910180,1741711850230,-1589.51,8.885e-05,2]
[355910181,1741711850239,-500.0,8.885e-05,2]
[355910182,1741711850248,-500.0,8.885e-05,2]
[355910183,1741711850257,-500.0,8.885e-05,2]
[355910184,1741711850267,-500.0,8.885e-05,2]
[355910185,1741711850276,-500.0,8.885e-05,2]
[355910186,1741711850285,-500.0,8.885e-05,2]
[355910187,1741711850295,-1434.83,8.885e-05,2]
[355910188,1741711850304,-500.0,8.885e-05,2]
[355910189,1741711850313,-500.0,8.885e-05,2]
[355910190,1741711850323,-560.32,8.885e-05,2]
[355910191,1741711850332,-500.0,8.885e-05,2]
[355910192,1741711850341,-1500.0,8.885e-05,2]
[355910193,1741711850351,-500.0,8.885e-05,2]
[355910194,1741711850360,-500.0,8.885e-05,2]
[355910195,1741711850370,-993.86,8.885e-05,2]
[355910196,1741711850380,-500.0,8.885e-05,2]
[355910197,1741711850390,-480.27725275,8.885e-05,2]
[355910198,1741711850399,-500.0,8.885e-05,2]
[355910199,1741711850409,-500.0,8.885e-05,2]
[355910200,1741711850418,-500.0,8.885e-05,2]
[355910201,1741711850427,-609.3,8.885e-05,2]
[355910202,1741711850437,-500.0,8.885e-05,2]
[355910203,1741711850447,-500.0,8.885e-05,2]
[355910204,1741711850456,-523.23,8.885e-05,2]
[355910205,1741711850466,-500.0,8.885e-05,2]
[355910206,1741711850475,-500.0,8.885e-05,2]
[355910207,1741711850485,-500.0,8.885e-05,2]
[355910208,1741711850499,-685.02,8.885e-05,2]
[355910209,1741711850508,-1973.85,8.885e-05,2]
[355910210,1741711850518,-500.0,8.885e-05,2]
[355910211,1741711850527,-886.72,8.885e-05,2]
[355910212,1741711850537,-502.75,8.885e-05,2]
[355910213,1741711850548,-500.0,8.885e-05,2]
[355910214,1741711850558,-500.0,8.885e-05,2]
[355910215,1741711850568,-1545.56,8.885e-05,2]
[355910216,1741711850578,-500.0,8.885e-05,2]
[355910217,1741711850587,-881.22,8.885e-05,2]
[355910218,1741711850597,-915.09,8.885e-05,2]
[355910219,1741711850607,-2559.62,8.885e-05,2]
[355910220,1741711850617,-500.0,8.885e-05,2]
[355910221,1741711850626,-500.0,8.885e-05,2]
[355910222,1741711850636,-500.0,8.885e-05,2]
[355910223,1741711850645,-500.0,8.885e-05,2]
[355910224,1741711850654,-500.0,8.885e-05,2]
[355910225,1741711850664,-609.75,8.885e-05,2]
[355910226,1741711850674,-500.0,8.885e-05,2]
[355910227,1741711850683,-500.0,8.885e-05,2]
[355910228,1741711850693,-500.0,8.885e-05,2]
[355910229,1741711850703,-500.0,8.885e-05,2]
[355910230,1741711850713,-636.28,8.885e-05,2]
[355910231,1741711850723,-500.0,8.885e-05,2]
[355910232,1741711850732,-598.4,8.885e-05,2]
[355910233,1741711850741,-500.0,8.885e-05,2]
[355910234,1741711850751,-500.0,8.885e-05,2]
[355910235,1741711850761,-1925.22,8.885e-05,2]
[355910236,1741711850770,-782.78,8.885e-05,2]
[355910237,1741711850779,-500.0,8.885e-05,2]
[355910238,1741711850789,-500.0,8.885e-05,2]
[355910239,1741711850799,-500.0,8.885e-05,2]
[355910240,1741711850808,-844.77,8.885e-05,2]
[355910241,1741711850987,-500.0,8.885e-05,2]
[355910242,1741711850997,-622.94,8.885e-05,2]
[355910243,1741711851007,-746.61,8.885e-05,2]
[355910244,1741711851016,-617.88,8.885e-05,2]
[355910245,1741711851025,-500.0,8.885e-05,2]
[355910246,1741711851035,-500.0,8.885e-05,2]
[355910247,1741711851044,-500.0,8.885e-05,2]
[355910248,1741711851054,-500.0,8.885e-05,2]
[355910249,1741711851063,-700.95,8.885e-05,2]
[355910250,1741711851073,-1879.04,8.885e-05,2]
[355910251,1741711851084,-611.8,8.885e-05,2]
[355910252,1741711851093,-500.0,8.885e-05,2]
[355910253,1741711851103,-500.0,8.885e-05,2]
[355910254,1741711851112,-1869.69,8.885e-05,2]
[355910255,1741711851121,-675.35,8.885e-05,2]
[355910256,1741711851131,-500.0,8.885e-05,2]
[355910257,1741711851140,-500.0,8.885e-05,2]
[355910258,1741711851149,-500.0,8.885e-05,2]
[355910259,1741711851158,-513.18,8.885e-05,2]
[355910260,1741711851168,-973.97,8.885e-05,2]
[355910261,1741711851177,-500.0,8.885e-05,2]
[355910262,1741711851187,-2275.0,8.885e-05,2]
[355910263,1741711851197,-500.0,8.885e-05,2]
[355910264,1741711851206,-500.0,8.885e-05,2]
[355910265,1741711851216,-500.0,8.885e-05,2]
[355910266,1741711851226,-500.0,8.885e-05,2]
[355910267,1741711851235,-667.86,8.885e-05,2]
[355910268,1741711851245,-500.0,8.885e-05,2]
[355910269,1741711851254,-575.43,8.885e-05,2]
[355910270,1741711851263,-500.0,8.885e-05,2]
[355910271,1741711851272,-1417.49,8.885e-05,2]
[355910272,1741711851282,-500.0,8.885e-05,2]
[355910273,1741711851291,-500.0,8.885e-05,2]
[355910274,1741711851301,-1977.82,8.885e-05,2]
[355910275,1741711851310,-500.0,8.885e-05,2]
[355910276,1741711851319,-1841.51,8.885e-05,2]
[355910277,1741711851328,-571.42,8.885e-05,2]
[355910278,1741711851338,-535.64,8.885e-05,2]
[355910279,1741711851347,-500.0,8.885e-05,2]
[355910280,1741711851356,-500.0,8.885e-05,2]
[355910281,1741711851365,-500.0,8.885e-05,2]
[355910282,1741711851375,-500.0,8.885e-05,2]
[355910283,1741711851384,-251.11813782,8.885e-05,2]
[355910284,1741711851393,-500.0,8.885e-05,2]
[355910285,1741711851403,-500.0,8.885e-05,2]
[355910286,1741711851413,-1757.02,8.885e-05,2]
[355910287,1741711851422,-500.0,8.885e-05,2]
[355910288,1741711851432,-500.0,8.885e-05,2]
[355910289,1741711851441,-500.0,8.885e-05,2]
[355910290,1741711851451,-500.0,8.885e-05,2]
[355910291,1741711851460,-500.0,8.885e-05,2]
[355910292,1741711851469,-1348.33,8.885e-05,2]
[355910293,1741711851479,-500.0,8.885e-05,2]
[355910294,1741711851491,-1269.35,8.885e-05,2]
[355910295,1741711851501,-500.0,8.885e-05,2]
[355910296,1741711851510,-500.0,8.885e-05,2]
[355910297,1741711851520,-1683.15,8.885e-05,2]
[355910298,1741711851530,-540.45,8.885e-05,2]
[355910299,1741711851541,-2415.87,8.885e-05,2]
[355910300,1741711851550,-500.0,8.885e-05,2]
[355910301,1741711851560,-1826.67,8.885e-05,2]
[355910302,1741711851570,-515.71186207,8.885e-05,2]
[355910303,1741711851579,-500.0,8.885e-05,2]
[355910304,1741711851588,-500.0,8.885e-05,2]
[355910305,1741711851598,-933.08,8.885e-05,2]
[355910306,1741711851606,-500.0,8.885e-05,2]
[355910307,1741711851615,-500.0,8.885e-05,2]
[355910308,1741711851625,-500.0,8.885e-05,2]
[355910309,1741711851634,-500.0,8.885e-05,2]
[355910310,1741711851643,-645.14,8.885e-05,2]
[355910311,1741711851653,-500.0,8.885e-05,2]
[355910312,1741711851663,-791.23,8.885e-05,2]
[355910313,1741711851672,-2481.05,8.885e-05,2]
[355910314,1741711851682,-523.88,8.885e-05,2]
[355910315,1741711851691,-500.0,8.885e-05,2]
[355910316,1741711851701,-500.0,8.885e-05,2]
[355910317,1741711851710,-500.0,8.885e-05,2]
[355910318,1741711851720,-820.29,8.885e-05,2]
[355910319,1741711851730,-500.0,8.885e-05,2]
[355910320,1741711851739,-500.0,8.885e-05,2]
[355910321,1741711851748,-500.0,8.885e-05,2]
[355910322,1741711851757,-1433.08,8.885e-05,2]
[355910323,1741711851767,-500.0,8.885e-05,2]
[355910324,1741711851776,-500.0,8.885e-05,2]
[355910325,1741711851786,-500.0,8.885e-05,2]
[355910326,1741711851795,-2357.35,8.885e-05,2]
[355910327,1741711851804,-1965.16,8.885e-05,2]
[355910328,1741711851814,-719.29,8.885e-05,2]
[355910329,1741711851823,-500.0,8.885e-05,2]
[355910330,1741711851832,-500.0,8.885e-05,2]
[355910331,1741711851841,-1581.75,8.885e-05,2]
[355910332,1741711851851,-807.68,8.885e-05,2]
[355910333,1741711851860,-211.1456755,8.885e-05,2]
[355910334,1741711851870,-561.93,8.885e-05,2]
[355910335,1741711851879,-923.14,8.885e-05,2]
[355910336,1741711851888,-639.97,8.885e-05,2]
[355910337,1741711851898,-500.0,8.885e-05,2]
[355910338,1741711851907,-500.0,8.885e-05,2]
[355910339,1741711851916,-1092.54,8.885e-05,2]
[355910340,1741711851926,-500.0,8.885e-05,2]
[355910341,1741711851935,-500.0,8.885e-05,2]
[355910342,1741711851946,-500.0,8.885e-05,2]
[355910343,1741711851955,-722.94,8.885e-05,2]
[355910344,1741711851966,-500.0,8.885e-05,2]
[355910345,1741711851976,-500.0,8.885e-05,2]
[355910346,1741711851985,-1556.23,8.885e-05,2]
[355910347,1741711851995,-500.0,8.885e-05,2]
[355910348,1741711852005,-1828.29,8.885e-05,14]
[355910349,1741711852015,-899.35,8.885e-05,2]
[355910350,1741711852024,-500.0,8.885e-05,2]
[355910351,1741711852033,-1627.69,8.885e-05,2]
[355910352,1741711852042,-557.63,8.885e-05,2]
[355910353,1741711852051,-500.0,8.885e-05,2]
[355910354,1741711852060,-1309.55,8.885e-05,2]
[355910355,1741711852071,-500.0,8.885e-05,2]
[355910356,1741711852080,-751.2,8.885e-05,2]
[355910357,1741711852090,-500.0,8.885e-05,2]
[355910358,1741711852099,-500.0,8.885e-05,2]
[355910359,1741711852108,-1500.55,8.885e-05,2]